[Event "*** SCC Grand Prix: Titled Tuesday Blitz"]
[Site "Chess.com"]
[Date "2020.10.06"]
[Round "1"]
[White "Gurvich_Vitaly"]
[Black "ARTHURMOTIVATOR"]
[Result "1-0"]
[WhiteElo "2647"]
[BlackElo "2324"]
[TimeControl "180+1"]
[EndTime "10:08:35 PDT"]
[Termination "Gurvich_Vitaly won on time"]

1. e4 {[%clk 0:02:58.1]} 1... c6 {[%clk 0:02:56]} 2. Nf3 {[%clk 0:02:47.4]} 2...
d5 {[%clk 0:02:55.8]} 3. d3 {[%clk 0:02:48.3]} 3... g6 {[%clk 0:02:53.1]} 4. e5
{[%clk 0:02:48.1]} 4... Bg7 {[%clk 0:02:52.5]} 5. c3 {[%clk 0:02:48.3]} 5... Nh6
{[%clk 0:02:49.4]} 6. h4 {[%clk 0:02:47.4]} 6... Bg4 {[%clk 0:02:46.1]} 7. d4
{[%clk 0:02:36.5]} 7... O-O {[%clk 0:02:34.6]} 8. Be2 {[%clk 0:02:34.7]} 8... f6
{[%clk 0:02:30.2]} 9. Nh2 {[%clk 0:01:52.7]} 9... Bxe2 {[%clk 0:02:23.5]} 10.
Qxe2 {[%clk 0:01:53.6]} 10... fxe5 {[%clk 0:02:19.6]} 11. dxe5 {[%clk
0:01:51.9]} 11... Nd7 {[%clk 0:02:14.6]} 12. Nf3 {[%clk 0:01:35.6]} 12... Rxf3
{[%clk 0:01:50.7]} 13. gxf3 {[%clk 0:01:33]} 13... Nf5 {[%clk 0:01:38.9]} 14. f4
{[%clk 0:01:29.4]} 14... e6 {[%clk 0:01:38.2]} 15. h5 {[%clk 0:01:28]} 15... Kf7
{[%clk 0:01:36.4]} 16. hxg6+ {[%clk 0:01:27.4]} 16... hxg6 {[%clk 0:01:36.1]}
17. Be3 {[%clk 0:01:28.3]} 17... c5 {[%clk 0:01:35.3]} 18. Na3 {[%clk
0:01:27.2]} 18... d4 {[%clk 0:01:33.7]} 19. cxd4 {[%clk 0:01:26.3]} 19... cxd4
{[%clk 0:01:33.9]} 20. Bd2 {[%clk 0:01:26.5]} 20... Rc8 {[%clk 0:01:31.1]} 21.
Rg1 {[%clk 0:01:25]} 21... Qb6 {[%clk 0:01:25.9]} 22. Nc4 {[%clk 0:01:22.6]}
22... Qa6 {[%clk 0:01:17.6]} 23. b3 {[%clk 0:01:21.5]} 23... b5 {[%clk 0:01:16]}
24. Nb2 {[%clk 0:01:20.3]} 24... Qb7 {[%clk 0:01:11.6]} 25. Qg4 {[%clk
0:01:18.1]} 25... Nf8 {[%clk 0:01:10.5]} 26. Qg2 {[%clk 0:01:15.6]} 26... Qd7
{[%clk 0:01:00.9]} 27. Nd3 {[%clk 0:01:11.7]} 27... Nh4 {[%clk 0:00:46.1]} 28.
Qh3 {[%clk 0:01:08.7]} 28... Qd5 {[%clk 0:00:45.4]} 29. Rg3 {[%clk 0:00:36.8]}
29... Qe4+ {[%clk 0:00:41.3]} 30. Kf1 {[%clk 0:00:35.4]} 30... Nf5 {[%clk
0:00:40.5]} 31. Rf3 {[%clk 0:00:30.6]} 31... Rc2 {[%clk 0:00:40.2]} 32. Re1
{[%clk 0:00:26.5]} 32... Ne3+ {[%clk 0:00:34.8]} 33. Rexe3 {[%clk 0:00:15.2]}
33... dxe3 {[%clk 0:00:34.1]} 34. Rxe3 {[%clk 0:00:16.1]} 34... Qb7 {[%clk
0:00:28.6]} 35. Bb4 {[%clk 0:00:15.3]} 35... Rxa2 {[%clk 0:00:25.3]} 36. Nc5
{[%clk 0:00:13.4]} 36... Ra1+ {[%clk 0:00:24.7]} 37. Ke2 {[%clk 0:00:13.1]}
37... Qd5 {[%clk 0:00:20.7]} 38. Rd3 {[%clk 0:00:12.9]} 38... Qh1 {[%clk
0:00:17.1]} 39. Qxh1 {[%clk 0:00:12.4]} 39... Rxh1 {[%clk 0:00:18]} 40. Ne4
{[%clk 0:00:13]} 40... Rh4 {[%clk 0:00:16.6]} 41. Ng5+ {[%clk 0:00:12.8]} 41...
Kg8 {[%clk 0:00:16.3]} 42. Kf3 {[%clk 0:00:13.6]} 42... Rh5 {[%clk 0:00:14]} 43.
Bxf8 {[%clk 0:00:08.3]} 43... Bxf8 {[%clk 0:00:12.8]} 44. Nxe6 {[%clk
0:00:08.2]} 44... Be7 {[%clk 0:00:12.5]} 45. Rd7 {[%clk 0:00:07]} 45... Kf7
{[%clk 0:00:10.4]} 46. Nd4 {[%clk 0:00:06.7]} 46... Ke8 {[%clk 0:00:11.3]} 47.
Rb7 {[%clk 0:00:05.7]} 47... a6 {[%clk 0:00:10.5]} 48. Nc6 {[%clk 0:00:05.5]}
48... Rh3+ {[%clk 0:00:10.4]} 49. Ke4 {[%clk 0:00:04.7]} 49... Bc5 {[%clk
0:00:09.7]} 50. Kd5 {[%clk 0:00:04.8]} 50... Bxf2 {[%clk 0:00:09.4]} 51. Ke6
{[%clk 0:00:05.2]} 51... Kf8 {[%clk 0:00:08.2]} 52. Rf7+ {[%clk 0:00:04.4]}
52... Kg8 {[%clk 0:00:05.2]} 53. Ne7+ {[%clk 0:00:04.4]} 53... Kh8 {[%clk
0:00:05.4]} 54. Nxg6+ {[%clk 0:00:05.3]} 54... Kg8 {[%clk 0:00:06]} 55. f5
{[%clk 0:00:05.7]} 55... Bc5 {[%clk 0:00:03.4]} 56. Ne7+ {[%clk 0:00:06.6]}
56... Bxe7 {[%clk 0:00:02.9]} 57. Rxe7 {[%clk 0:00:07.5]} 57... Rh6+ {[%clk
0:00:02.6]} 58. f6 {[%clk 0:00:07.6]} 58... Kf8 {[%clk 0:00:02.9]} 59. Ra7
{[%clk 0:00:07.3]} 59... Kg8 {[%clk 0:00:02.4]} 60. Rxa6 {[%clk 0:00:07]} 60...
Rg6 {[%clk 0:00:01.8]} 61. Ra8+ {[%clk 0:00:07.1]} 61... Kh7 {[%clk 0:00:01.2]}
62. Ke7 {[%clk 0:00:07.5]} 62... Rg5 {[%clk 0:00:01.1]} 63. e6 {[%clk
0:00:07.8]} 63... Re5 {[%clk 0:00:01.4]} 64. f7 {[%clk 0:00:07.9]} 1-0

[Event "*** SCC Grand Prix: Titled Tuesday Blitz"]
[Site "Chess.com"]
[Date "2020.10.06"]
[Round "1"]
[White "vinniethepooh"]
[Black "Ze-Pequeno"]
[Result "1-0"]
[WhiteElo "2571"]
[BlackElo "2254"]
[TimeControl "180+1"]
[EndTime "10:08:36 PDT"]
[Termination "vinniethepooh won by checkmate"]

1. d4 {[%clk 0:03:00.9]} 1... Nf6 {[%clk 0:02:59.6]} 2. c4 {[%clk 0:03:01.5]}
2... Nc6 {[%clk 0:02:59.6]} 3. Nf3 {[%clk 0:03:00.4]} 3... e6 {[%clk 0:02:58.8]}
4. Nc3 {[%clk 0:02:59.4]} 4... Bb4 {[%clk 0:02:58]} 5. e3 {[%clk 0:02:59.5]}
5... O-O {[%clk 0:02:56.5]} 6. Bd3 {[%clk 0:02:59.7]} 6... d6 {[%clk 0:02:56]}
7. O-O {[%clk 0:02:59.6]} 7... e5 {[%clk 0:02:54.7]} 8. d5 {[%clk 0:02:36.5]}
8... Ne7 {[%clk 0:02:52.7]} 9. e4 {[%clk 0:02:34.1]} 9... Bxc3 {[%clk
0:02:50.5]} 10. bxc3 {[%clk 0:02:34]} 10... Ng6 {[%clk 0:02:42.6]} 11. a4 {[%clk
0:02:22.8]} 11... a5 {[%clk 0:02:42]} 12. c5 {[%clk 0:02:12.6]} 12... dxc5
{[%clk 0:02:41.6]} 13. c4 {[%clk 0:02:13.1]} 13... b6 {[%clk 0:02:41.6]} 14. Bb2
{[%clk 0:01:55.2]} 14... Qe7 {[%clk 0:02:40.9]} 15. h3 {[%clk 0:01:50.5]} 15...
Ne8 {[%clk 0:02:36.3]} 16. Qd2 {[%clk 0:01:49.6]} 16... Nd6 {[%clk 0:02:32.9]}
17. Rfe1 {[%clk 0:01:47.1]} 17... Qf6 {[%clk 0:02:28.5]} 18. Re3 {[%clk
0:01:24.4]} 18... Qe7 {[%clk 0:02:10]} 19. Qc3 {[%clk 0:01:16.8]} 19... f6
{[%clk 0:02:09.1]} 20. Nd2 {[%clk 0:01:05]} 20... Bd7 {[%clk 0:02:08.2]} 21. Kh2
{[%clk 0:01:01.7]} 21... Nf4 {[%clk 0:02:02.7]} 22. Bf1 {[%clk 0:00:58]} 22...
Rae8 {[%clk 0:02:01.6]} 23. g3 {[%clk 0:00:50.7]} 23... Ng6 {[%clk 0:01:38.4]}
24. h4 {[%clk 0:00:50.8]} 24... Nh8 {[%clk 0:01:26.3]} 25. f4 {[%clk 0:00:36.7]}
25... Nhf7 {[%clk 0:01:17.5]} 26. f5 {[%clk 0:00:33.6]} 26... Nh6 {[%clk
0:01:05.9]} 27. Be2 {[%clk 0:00:33]} 27... g6 {[%clk 0:01:05.7]} 28. g4 {[%clk
0:00:29.4]} 28... gxf5 {[%clk 0:01:02.5]} 29. exf5 {[%clk 0:00:29.2]} 29... Rf7
{[%clk 0:00:50.6]} 30. Ne4 {[%clk 0:00:28.8]} 30... Rg7 {[%clk 0:00:39.5]} 31.
Rg1 {[%clk 0:00:24.4]} 31... Rf8 {[%clk 0:00:38.3]} 32. Qc2 {[%clk 0:00:21.1]}
32... Nxe4 {[%clk 0:00:25.6]} 33. Rxe4 {[%clk 0:00:18.9]} 33... Nf7 {[%clk
0:00:25.6]} 34. Bf3 {[%clk 0:00:15.1]} 34... Nd6 {[%clk 0:00:25.4]} 35. Re2
{[%clk 0:00:14.9]} 35... Rff7 {[%clk 0:00:25.3]} 36. Bc1 {[%clk 0:00:12]} 36...
Kh8 {[%clk 0:00:20]} 37. Bh6 {[%clk 0:00:12.5]} 37... Rg8 {[%clk 0:00:20.4]} 38.
Be4 {[%clk 0:00:12.7]} 38... Qe8 {[%clk 0:00:19.6]} 39. Qd3 {[%clk 0:00:12.3]}
39... Bxa4 {[%clk 0:00:19.2]} 40. g5 {[%clk 0:00:12.4]} 40... fxg5 {[%clk
0:00:16.5]} 41. hxg5 {[%clk 0:00:13.3]} 41... Bd7 {[%clk 0:00:15.5]} 42. g6
{[%clk 0:00:10.1]} 42... hxg6 {[%clk 0:00:12.2]} 43. fxg6 {[%clk 0:00:10.5]}
43... Rfg7 {[%clk 0:00:12.6]} 44. Rg5 {[%clk 0:00:05.1]} 44... Nxe4 {[%clk
0:00:10.9]} 45. Bxg7+ {[%clk 0:00:05.5]} 45... Rxg7 {[%clk 0:00:10.9]} 46. Qxe4
{[%clk 0:00:06.1]} 46... Kg8 {[%clk 0:00:11.3]} 47. Reg2 {[%clk 0:00:04.6]}
47... Qf8 {[%clk 0:00:11.2]} 48. Rh5 {[%clk 0:00:04.5]} 48... Qd6 {[%clk
0:00:10.9]} 49. Qh4 {[%clk 0:00:03.4]} 49... Kf8 {[%clk 0:00:11]} 50. Rh8+
{[%clk 0:00:03.6]} 50... Rg8 {[%clk 0:00:11.5]} 51. Qh6+ {[%clk 0:00:03.9]}
51... Ke7 {[%clk 0:00:11.5]} 52. Rxg8 {[%clk 0:00:04]} 52... e4+ {[%clk
0:00:11.5]} 53. Kh1 {[%clk 0:00:04.5]} 53... Qe5 {[%clk 0:00:11.6]} 54. Qg5+
{[%clk 0:00:04.8]} 54... Qxg5 {[%clk 0:00:11]} 55. Rxg5 {[%clk 0:00:05.7]} 55...
Kf6 {[%clk 0:00:11.1]} 56. Rg3 {[%clk 0:00:06.2]} 56... Bf5 {[%clk 0:00:10.4]}
57. g7 {[%clk 0:00:06.5]} 57... e3 {[%clk 0:00:10.1]} 58. Rf8+ {[%clk
0:00:06.5]} 58... Ke5 {[%clk 0:00:11]} 59. g8=Q {[%clk 0:00:07]} 59... Be4+
{[%clk 0:00:10.5]} 60. Kh2 {[%clk 0:00:06.8]} 60... e2 {[%clk 0:00:11.1]} 61.
Re8+ {[%clk 0:00:07.3]} 61... Kd4 {[%clk 0:00:11.2]} 62. Rxe4+ {[%clk
0:00:07.7]} 62... Kxe4 {[%clk 0:00:11.2]} 63. Qg4+ {[%clk 0:00:07.9]} 63... Ke5
{[%clk 0:00:10.8]} 64. Qxe2+ {[%clk 0:00:08.5]} 64... Kd6 {[%clk 0:00:10.9]} 65.
Qe6# {[%clk 0:00:08.8]} 1-0

[Event "*** SCC Grand Prix: Titled Tuesday Blitz"]
[Site "Chess.com"]
[Date "2020.10.06"]
[Round "1"]
[White "FloMaster111"]
[Black "kirillgenius"]
[Result "1-0"]
[WhiteElo "2572"]
[BlackElo "2254"]
[TimeControl "180+1"]
[EndTime "10:08:41 PDT"]
[Termination "FloMaster111 won by resignation"]

1. Nf3 {[%clk 0:02:57.4]} 1... d5 {[%clk 0:02:59.5]} 2. e3 {[%clk 0:02:57]} 2...
c6 {[%clk 0:02:57.6]} 3. c4 {[%clk 0:02:57.2]} 3... Nf6 {[%clk 0:02:55.6]} 4.
Nc3 {[%clk 0:02:57.2]} 4... Bg4 {[%clk 0:02:54.9]} 5. cxd5 {[%clk 0:02:53.1]}
5... cxd5 {[%clk 0:02:54.4]} 6. Qb3 {[%clk 0:02:53.1]} 6... Qb6 {[%clk
0:02:49.6]} 7. Nxd5 {[%clk 0:02:48.1]} 7... Qxb3 {[%clk 0:02:42.6]} 8. Nxf6+
{[%clk 0:02:42.5]} 8... gxf6 {[%clk 0:02:40.6]} 9. axb3 {[%clk 0:02:43.4]} 9...
Nc6 {[%clk 0:02:40.6]} 10. Bb5 {[%clk 0:02:38.5]} 10... Bd7 {[%clk 0:02:39.9]}
11. d4 {[%clk 0:02:29.8]} 11... e6 {[%clk 0:02:36.1]} 12. O-O {[%clk 0:02:22.7]}
12... a6 {[%clk 0:02:34.2]} 13. Bd2 {[%clk 0:02:15.3]} 13... Bd6 {[%clk
0:02:29.9]} 14. Bd3 {[%clk 0:02:00.8]} 14... Ke7 {[%clk 0:02:29.9]} 15. e4
{[%clk 0:01:54.7]} 15... Rac8 {[%clk 0:02:17.8]} 16. Bc3 {[%clk 0:01:52.7]}
16... Rhg8 {[%clk 0:02:03.7]} 17. Rfe1 {[%clk 0:01:49.5]} 17... h5 {[%clk
0:01:53.5]} 18. Nd2 {[%clk 0:01:31.2]} 18... Nb4 {[%clk 0:01:47.1]} 19. Bb1
{[%clk 0:01:28]} 19... Nc6 {[%clk 0:01:42.8]} 20. Nc4 {[%clk 0:01:27.6]} 20...
Bc7 {[%clk 0:01:41.5]} 21. d5 {[%clk 0:01:24.6]} 21... Ne5 {[%clk 0:01:37.1]}
22. Bb4+ {[%clk 0:01:21.2]} 22... Ke8 {[%clk 0:01:36.1]} 23. f4 {[%clk
0:00:59.7]} 23... Nxc4 {[%clk 0:01:33.8]} 24. bxc4 {[%clk 0:00:54.6]} 24... Bxf4
{[%clk 0:01:33.3]} 25. b3 {[%clk 0:00:49.4]} 25... Be5 {[%clk 0:01:30.4]} 26.
Ra2 {[%clk 0:00:46.6]} 26... h4 {[%clk 0:01:18.6]} 27. h3 {[%clk 0:00:46.3]}
27... Rg3 {[%clk 0:01:16.8]} 28. Bc2 {[%clk 0:00:32.5]} 28... Bc3 {[%clk
0:01:08.1]} 29. Bxc3 {[%clk 0:00:29.7]} 29... Rxc3 {[%clk 0:01:09]} 30. Bd1
{[%clk 0:00:27]} 30... Ke7 {[%clk 0:01:08.1]} 31. Rd2 {[%clk 0:00:24.7]} 31...
Rg8 {[%clk 0:01:04.5]} 32. Kh2 {[%clk 0:00:23.5]} 32... b6 {[%clk 0:00:55.5]}
33. Rf1 {[%clk 0:00:20.4]} 33... Rg6 {[%clk 0:00:52.5]} 34. Rf4 {[%clk
0:00:19.8]} 34... Rh6 {[%clk 0:00:51]} 35. Rdf2 {[%clk 0:00:18.3]} 35... a5
{[%clk 0:00:50]} 36. e5 {[%clk 0:00:15.3]} 36... Rc1 {[%clk 0:00:42]} 37. exf6+
{[%clk 0:00:08.4]} 37... Kd6 {[%clk 0:00:42.2]} 38. Bf3 {[%clk 0:00:08.5]} 38...
e5 {[%clk 0:00:42.2]} 39. Re4 {[%clk 0:00:08.1]} 39... Rc3 {[%clk 0:00:41.5]}
40. Rfe2 {[%clk 0:00:08]} 40... Rxb3 {[%clk 0:00:37.6]} 41. Rxe5 {[%clk
0:00:08.2]} 41... a4 {[%clk 0:00:35.9]} 42. Re7 {[%clk 0:00:07.5]} 42... a3
{[%clk 0:00:34.6]} 43. Rxf7 {[%clk 0:00:06.1]} 43... Rb2 {[%clk 0:00:33.7]} 44.
Re3 {[%clk 0:00:06]} 44... a2 {[%clk 0:00:32.3]} 45. Ra3 {[%clk 0:00:06.4]}
45... Bf5 {[%clk 0:00:26.7]} 46. Raa7 {[%clk 0:00:05.9]} 46... Ke5 {[%clk
0:00:21.8]} 47. Rf8 {[%clk 0:00:03.6]} 47... Kf4 {[%clk 0:00:18.2]} 48. f7
{[%clk 0:00:03.5]} 48... Rg6 {[%clk 0:00:18.5]} 49. Rg8 {[%clk 0:00:02.6]} 49...
Rf6 {[%clk 0:00:10.5]} 50. f8=Q {[%clk 0:00:02.7]} 50... Rxf8 {[%clk 0:00:11.1]}
51. Rxf8 {[%clk 0:00:03.6]} 51... Ke5 {[%clk 0:00:08.1]} 52. Re8+ {[%clk
0:00:03.7]} 52... Kd4 {[%clk 0:00:08.1]} 53. Rd8 {[%clk 0:00:04.6]} 53... Bb1
{[%clk 0:00:06.2]} 54. d6 {[%clk 0:00:04.6]} 54... Rc2 {[%clk 0:00:05.9]} 55. d7
{[%clk 0:00:04.7]} 55... Rxc4 {[%clk 0:00:06.1]} 56. Re8 {[%clk 0:00:04.9]}
56... Kc3 {[%clk 0:00:04.1]} 57. d8=Q {[%clk 0:00:05.8]} 57... Kb2 {[%clk
0:00:04.1]} 58. Re2+ {[%clk 0:00:06]} 58... Rc2 {[%clk 0:00:04.2]} 59. Qh8+
{[%clk 0:00:06.9]} 59... Kc1 {[%clk 0:00:03.8]} 60. Rxc2+ {[%clk 0:00:06.4]}
60... Kxc2 {[%clk 0:00:04.7]} 61. Qd8 {[%clk 0:00:06.3]} 1-0

[Event "*** SCC Grand Prix: Titled Tuesday Blitz"]
[Site "Chess.com"]
[Date "2020.10.06"]
[Round "1"]
[White "Salem-AR"]
[Black "boasovietica"]
[Result "1/2-1/2"]
[WhiteElo "2907"]
[BlackElo "2469"]
[TimeControl "180+1"]
[EndTime "10:09:02 PDT"]
[Termination "Game drawn by repetition"]

1. d4 {[%clk 0:02:56.7]} 1... Nf6 {[%clk 0:02:46.6]} 2. c4 {[%clk 0:02:56.5]}
2... e6 {[%clk 0:02:46]} 3. Nf3 {[%clk 0:02:56.6]} 3... d5 {[%clk 0:02:45.4]} 4.
Nc3 {[%clk 0:02:55.8]} 4... Nbd7 {[%clk 0:02:45.1]} 5. cxd5 {[%clk 0:02:55.4]}
5... exd5 {[%clk 0:02:45.2]} 6. Bg5 {[%clk 0:02:56]} 6... c6 {[%clk 0:02:45.3]}
7. e3 {[%clk 0:02:56.5]} 7... Be7 {[%clk 0:02:45.7]} 8. Bd3 {[%clk 0:02:57.1]}
8... Nh5 {[%clk 0:02:44.8]} 9. Bxe7 {[%clk 0:02:54]} 9... Qxe7 {[%clk
0:02:45.7]} 10. O-O {[%clk 0:02:53.5]} 10... O-O {[%clk 0:02:45.3]} 11. Qb1
{[%clk 0:02:53.9]} 11... g6 {[%clk 0:02:41.6]} 12. b4 {[%clk 0:02:54.3]} 12...
a6 {[%clk 0:02:37.4]} 13. a4 {[%clk 0:02:44.2]} 13... Nb6 {[%clk 0:02:37]} 14.
Rc1 {[%clk 0:02:40.8]} 14... Bd7 {[%clk 0:02:34.3]} 15. a5 {[%clk 0:02:39.8]}
15... Nc8 {[%clk 0:02:33.1]} 16. Na4 {[%clk 0:02:40.5]} 16... Nd6 {[%clk
0:02:33.1]} 17. Ne5 {[%clk 0:02:39]} 17... Rad8 {[%clk 0:02:28]} 18. Qc2 {[%clk
0:02:18.1]} 18... Ng7 {[%clk 0:02:21.9]} 19. Nc5 {[%clk 0:02:15.4]} 19... Bc8
{[%clk 0:02:00.1]} 20. Re1 {[%clk 0:02:15.3]} 20... f6 {[%clk 0:01:57.9]} 21.
Nf3 {[%clk 0:02:14]} 21... Bf5 {[%clk 0:01:56.1]} 22. Nd2 {[%clk 0:01:55.7]}
22... Bxd3 {[%clk 0:01:56]} 23. Qxd3 {[%clk 0:01:56.6]} 23... Qf7 {[%clk
0:01:35.3]} 24. Re2 {[%clk 0:01:46.4]} 24... Rfe8 {[%clk 0:01:34.6]} 25. Rae1
{[%clk 0:01:46.4]} 25... Ne6 {[%clk 0:01:33.3]} 26. Ndb3 {[%clk 0:01:39.1]}
26... Nxc5 {[%clk 0:01:29.2]} 27. Nxc5 {[%clk 0:01:37.5]} 27... Re7 {[%clk
0:01:26.9]} 28. f3 {[%clk 0:01:35.3]} 28... f5 {[%clk 0:01:24.3]} 29. g3 {[%clk
0:01:08.7]} 29... Rde8 {[%clk 0:01:22.1]} 30. Kg2 {[%clk 0:01:09.4]} 30... Qf6
{[%clk 0:01:07.7]} 31. Rf2 {[%clk 0:01:02.1]} 31... Qg7 {[%clk 0:01:03.7]} 32.
h3 {[%clk 0:01:01.3]} 32... h6 {[%clk 0:01:03.3]} 33. Rfe2 {[%clk 0:00:58.3]}
33... Qf6 {[%clk 0:01:02.6]} 34. Qc2 {[%clk 0:00:54]} 34... Kh8 {[%clk
0:00:55.8]} 35. Qc3 {[%clk 0:00:38.7]} 35... Qg7 {[%clk 0:00:54.2]} 36. Qd3
{[%clk 0:00:39]} 36... Qf6 {[%clk 0:00:53]} 37. Qd1 {[%clk 0:00:38.4]} 37... Qg7
{[%clk 0:00:52.1]} 38. Qc2 {[%clk 0:00:39.1]} 38... Qf6 {[%clk 0:00:52.1]} 39.
Qd3 {[%clk 0:00:39.9]} 39... Qg7 {[%clk 0:00:52.4]} 40. g4 {[%clk 0:00:40.7]}
40... Qf6 {[%clk 0:00:49.1]} 41. Qc2 {[%clk 0:00:25.1]} 41... Rf8 {[%clk
0:00:42.8]} 42. Rf1 {[%clk 0:00:22.8]} 42... Ref7 {[%clk 0:00:41.3]} 43. Ref2
{[%clk 0:00:20.5]} 43... Qe7 {[%clk 0:00:35.6]} 44. Qc1 {[%clk 0:00:16.4]} 44...
Re8 {[%clk 0:00:18.6]} 45. Nd3 {[%clk 0:00:10]} 45... Nc4 {[%clk 0:00:16.3]} 46.
e4 {[%clk 0:00:10.3]} 46... fxe4 {[%clk 0:00:15]} 47. fxe4 {[%clk 0:00:06.6]}
47... Qxe4+ {[%clk 0:00:14.6]} 48. Kh2 {[%clk 0:00:07.3]} 48... Rxf2+ {[%clk
0:00:13.2]} 49. Nxf2 {[%clk 0:00:06.8]} 49... Qe3 {[%clk 0:00:12]} 50. Qc2
{[%clk 0:00:05.2]} 50... Kg7 {[%clk 0:00:09.1]} 51. Nd3 {[%clk 0:00:04.6]} 51...
Qe2+ {[%clk 0:00:09]} 52. Qxe2 {[%clk 0:00:05.4]} 52... Rxe2+ {[%clk 0:00:08.7]}
53. Kg1 {[%clk 0:00:06.3]} 53... Ne3 {[%clk 0:00:07.9]} 54. Rf3 {[%clk
0:00:06.7]} 54... Nc4 {[%clk 0:00:07.2]} 55. Nc5 {[%clk 0:00:06.8]} 55... Rb2
{[%clk 0:00:06.6]} 56. Ne6+ {[%clk 0:00:06.3]} 56... Kg8 {[%clk 0:00:06]} 57.
Rf8+ {[%clk 0:00:07]} 57... Kh7 {[%clk 0:00:06.4]} 58. Rf7+ {[%clk 0:00:07.9]}
58... Kg8 {[%clk 0:00:06.7]} 59. Rf8+ {[%clk 0:00:08.8]} 59... Kh7 {[%clk
0:00:06.9]} 60. Rf7+ {[%clk 0:00:09.7]} 60... Kg8 {[%clk 0:00:07.4]} 61. Rxb7
{[%clk 0:00:10.6]} 61... Rb1+ {[%clk 0:00:04.8]} 62. Kf2 {[%clk 0:00:10.3]}
62... Rb2+ {[%clk 0:00:05.3]} 63. Ke1 {[%clk 0:00:08.7]} 63... Rb1+ {[%clk
0:00:04.2]} 64. Ke2 {[%clk 0:00:09.2]} 64... Rb2+ {[%clk 0:00:04.5]} 65. Kd3
{[%clk 0:00:09.7]} 65... Rb3+ {[%clk 0:00:04.8]} 66. Kc2 {[%clk 0:00:09.3]}
66... Rxh3 {[%clk 0:00:05.3]} 67. Rg7+ {[%clk 0:00:07.1]} 67... Kh8 {[%clk
0:00:05.6]} 68. Rxg6 {[%clk 0:00:08]} 68... Kh7 {[%clk 0:00:04]} 69. Rg7+ {[%clk
0:00:07.8]} 69... Kh8 {[%clk 0:00:04.4]} 70. Rc7 {[%clk 0:00:08.7]} 70... Rh2+
{[%clk 0:00:03.7]} 71. Kb3 {[%clk 0:00:07.5]} 71... Rh3+ {[%clk 0:00:03.8]} 72.
Kc2 {[%clk 0:00:07.9]} 72... Rh2+ {[%clk 0:00:04.3]} 73. Kd3 {[%clk 0:00:08.4]}
73... Rh3+ {[%clk 0:00:04.6]} 74. Kc2 {[%clk 0:00:08.1]} 1/2-1/2

[Event "*** SCC Grand Prix: Titled Tuesday Blitz"]
[Site "Chess.com"]
[Date "2020.10.06"]
[Round "1"]
[White "platy3"]
[Black "kakakz"]
[Result "1-0"]
[WhiteElo "2802"]
[BlackElo "2410"]
[TimeControl "180+1"]
[EndTime "10:09:04 PDT"]
[Termination "platy3 won on time"]

1. e4 {[%clk 0:02:58.9]} 1... e6 {[%clk 0:02:59.8]} 2. d4 {[%clk 0:02:58.4]}
2... d5 {[%clk 0:03:00.7]} 3. Nc3 {[%clk 0:02:59.1]} 3... Bb4 {[%clk 0:03:00.4]}
4. e5 {[%clk 0:02:59.4]} 4... b6 {[%clk 0:02:58.9]} 5. a3 {[%clk 0:02:55.9]}
5... Bxc3+ {[%clk 0:02:58.2]} 6. bxc3 {[%clk 0:02:56.8]} 6... Qd7 {[%clk
0:02:57.7]} 7. h4 {[%clk 0:02:55.5]} 7... Ne7 {[%clk 0:02:54.4]} 8. Qg4 {[%clk
0:02:54.1]} 8... Kf8 {[%clk 0:02:50.1]} 9. h5 {[%clk 0:02:53.6]} 9... h6 {[%clk
0:02:49.3]} 10. Rh3 {[%clk 0:02:53.6]} 10... Ba6 {[%clk 0:02:48.4]} 11. Rf3
{[%clk 0:02:52.5]} 11... Bxf1 {[%clk 0:02:45.9]} 12. Kxf1 {[%clk 0:02:53.4]}
12... c5 {[%clk 0:02:11.6]} 13. a4 {[%clk 0:02:51.8]} 13... Nbc6 {[%clk
0:02:09.4]} 14. Ne2 {[%clk 0:02:50.5]} 14... Kg8 {[%clk 0:02:00.8]} 15. Ba3
{[%clk 0:02:41]} 15... cxd4 {[%clk 0:01:55.1]} 16. cxd4 {[%clk 0:02:39.9]} 16...
Na5 {[%clk 0:01:37.6]} 17. Qf4 {[%clk 0:02:34.4]} 17... Nec6 {[%clk 0:01:37.4]}
18. Rg3 {[%clk 0:02:25.2]} 18... Nc4 {[%clk 0:01:35.9]} 19. Bc1 {[%clk 0:02:15]}
19... Ne7 {[%clk 0:01:34]} 20. Qg4 {[%clk 0:02:08.4]} 20... Nf5 {[%clk
0:01:30.7]} 21. Rf3 {[%clk 0:02:09]} 21... Rc8 {[%clk 0:01:27.9]} 22. Ng3 {[%clk
0:02:09.1]} 22... Nxg3+ {[%clk 0:01:27.5]} 23. Rxg3 {[%clk 0:02:09.3]} 23... Rh7
{[%clk 0:01:14.7]} 24. Bxh6 {[%clk 0:02:06.7]} 24... f5 {[%clk 0:01:14.7]} 25.
Qg6 {[%clk 0:01:53.6]} 25... Qf7 {[%clk 0:01:11.5]} 26. Bc1 {[%clk 0:01:14.9]}
26... Rxh5 {[%clk 0:01:07.2]} 27. Qxf7+ {[%clk 0:01:01.9]} 27... Kxf7 {[%clk
0:01:07.1]} 28. Rh3 {[%clk 0:01:02.8]} 28... Rxh3 {[%clk 0:01:01.1]} 29. gxh3
{[%clk 0:01:03.7]} 29... Na5 {[%clk 0:01:01.6]} 30. Ra2 {[%clk 0:01:03.7]} 30...
Rc4 {[%clk 0:01:00.1]} 31. Be3 {[%clk 0:00:34.1]} 31... Nc6 {[%clk 0:00:56.6]}
32. a5 {[%clk 0:00:24.6]} 32... bxa5 {[%clk 0:00:53.2]} 33. Ke1 {[%clk
0:00:18.1]} 33... Nxd4 {[%clk 0:00:49.8]} 34. Kd1 {[%clk 0:00:17.7]} 34... Nc6
{[%clk 0:00:48.4]} 35. f4 {[%clk 0:00:18]} 35... Rc3 {[%clk 0:00:44.6]} 36. Ke2
{[%clk 0:00:17.3]} 36... d4 {[%clk 0:00:41.9]} 37. Bd2 {[%clk 0:00:17.7]} 37...
Rxh3 {[%clk 0:00:41.3]} 38. Bxa5 {[%clk 0:00:18.4]} 38... Re3+ {[%clk
0:00:33.6]} 39. Kf2 {[%clk 0:00:17.5]} 39... Nxa5 {[%clk 0:00:20.5]} 40. Rxa5
{[%clk 0:00:17.3]} 40... Rc3 {[%clk 0:00:21.4]} 41. Rxa7+ {[%clk 0:00:16.9]}
41... Kg6 {[%clk 0:00:21.8]} 42. Rd7 {[%clk 0:00:11.7]} 42... Rxc2+ {[%clk
0:00:20.6]} 43. Kg3 {[%clk 0:00:12.6]} 43... Rc3+ {[%clk 0:00:20.6]} 44. Kh4
{[%clk 0:00:12.5]} 44... Rc4 {[%clk 0:00:19.4]} 45. Re7 {[%clk 0:00:10.4]} 45...
d3 {[%clk 0:00:19.2]} 46. Rxe6+ {[%clk 0:00:10.4]} 46... Kf7 {[%clk 0:00:19.7]}
47. Rd6 {[%clk 0:00:10.9]} 47... Rxf4+ {[%clk 0:00:20.6]} 48. Kg5 {[%clk
0:00:11.4]} 48... Rf3 {[%clk 0:00:20.3]} 49. Kh5 {[%clk 0:00:07.2]} 49... g6+
{[%clk 0:00:19.3]} 50. Kg5 {[%clk 0:00:07.1]} 50... Rg3+ {[%clk 0:00:19.4]} 51.
Kf4 {[%clk 0:00:05.1]} 51... Rh3 {[%clk 0:00:19.3]} 52. Rd7+ {[%clk 0:00:03.7]}
52... Ke6 {[%clk 0:00:19]} 53. Rd6+ {[%clk 0:00:04]} 53... Kf7 {[%clk 0:00:19]}
54. Rd7+ {[%clk 0:00:04.2]} 54... Ke8 {[%clk 0:00:17.8]} 55. e6 {[%clk
0:00:04.7]} 55... Rh4+ {[%clk 0:00:16.6]} 56. Ke5 {[%clk 0:00:05.2]} 56... d2
{[%clk 0:00:16.8]} 57. Kf6 {[%clk 0:00:04.8]} 57... g5 {[%clk 0:00:09.9]} 58.
Rxd2 {[%clk 0:00:04.1]} 58... Rh6+ {[%clk 0:00:10]} 59. Ke5 {[%clk 0:00:04.8]}
59... Ke7 {[%clk 0:00:10]} 60. Rd7+ {[%clk 0:00:03.7]} 60... Ke8 {[%clk
0:00:10.3]} 61. Ra7 {[%clk 0:00:04.4]} 61... g4 {[%clk 0:00:08.7]} 62. Kd6
{[%clk 0:00:04.3]} 62... Kf8 {[%clk 0:00:08.4]} 63. Rf7+ {[%clk 0:00:02.8]}
63... Ke8 {[%clk 0:00:08.5]} 64. Rxf5 {[%clk 0:00:02.5]} 64... Rg6 {[%clk
0:00:08.5]} 65. Rh5 {[%clk 0:00:02.4]} 65... Kf8 {[%clk 0:00:08.4]} 66. Kd7
{[%clk 0:00:02.4]} 66... g3 {[%clk 0:00:07.9]} 67. e7+ {[%clk 0:00:01.8]} 67...
Kg7 {[%clk 0:00:08.4]} 68. e8=Q {[%clk 0:00:02.7]} 68... g2 {[%clk 0:00:02.5]}
69. Qe7+ {[%clk 0:00:03.3]} 69... Kg8 {[%clk 0:00:02]} 70. Qh7+ {[%clk
0:00:04.2]} 70... Kf8 {[%clk 0:00:02.1]} 71. Rf5+ {[%clk 0:00:05.1]} 1-0